bitfinex/quotes_SOLUSD_20250306
["timestamp","ask_amount","ask_price","bid_price","bid_amount"]
[1741274026911,80.8,148.42,148.33,173.10339462]
[1741274026912,80.8,148.42,148.33,104.896]
[1741274027118,80.8,148.41,148.37,49.55774576]
[1741274027418,87.5364,148.45,148.38,49.55774576]
[1741274027719,80.8,148.44,148.39,0.14216157]
[1741274028231,80.8,148.44,148.39,312.0]
[1741274028628,80.8,148.44,148.36,0.14216157]
[1741274028824,80.8,148.44,148.34,30.59207883]
[1741274029029,80.8,148.43,148.33,30.59207883]
[1741274029240,6.7376,148.42,148.33,30.59207883]
[1741274029432,23.5816,148.42,148.32,30.59207883]
[1741274029760,89.22,148.41,148.3,10.43882534]
[1741274030045,80.8,148.4,148.34,0.14216157]
[1741274030345,8.42,148.41,148.34,0.14216157]
[1741274030346,80.8,148.39,148.34,0.14216157]
[1741274031045,80.8,148.39,148.38,49.86938459]
[1741274031248,6.737,148.44,148.38,49.86938459]
[1741274031448,80.8,148.43,148.38,49.86938459]
[1741274031650,80.8,148.43,148.38,312.0]
[1741274032031,80.8,148.43,148.39,0.14216157]
[1741274032345,160.42,148.46,148.42,49.72722302]
[1741274032529,160.42,148.46,148.44,0.14216157]
[1741274032926,160.42,148.46,148.41,0.14216157]
[1741274033327,160.42,148.46,148.41,49.72722302]
[1741274033629,160.42,148.46,148.42,0.14216157]
[1741274033826,136.96936059,148.46,148.42,0.14216157]
[1741274034034,136.96936059,148.46,148.36,27.06964886]
[1741274034035,136.96936059,148.46,148.39,0.14216157]
[1741274034237,136.96936059,148.46,148.42,0.14216157]
[1741274034433,136.96936059,148.46,148.41,49.72722302]
[1741274034647,136.96936059,148.46,148.39,49.86938459]
[1741274034853,136.96936059,148.46,148.41,0.14216157]
[1741274035148,136.96936059,148.46,148.42,312.0]
[1741274035648,143.70526059,148.46,148.36,8.42]
[1741274035846,80.8,148.45,148.37,49.72722302]
[1741274036230,80.8,148.45,148.37,0.14216157]
[1741274036654,80.8,148.44,148.35,6.7406]
[1741274036947,80.8,148.44,148.37,0.14216157]
[1741274037165,23.58,148.43,148.31,6.7426]
[1741274037327,80.8,148.42,148.32,49.72722302]
[1741274037527,80.8,148.42,148.33,0.14216157]
[1741274037757,80.8,148.42,148.31,56.46982302]
[1741274037935,80.8,148.41,148.3,56.47012302]
[1741274038133,8.36,148.4,148.31,49.72722302]
[1741274038459,80.8,148.39,148.33,49.86938459]
[1741274038753,80.8,148.39,148.33,312.14216157]
[1741274039140,87.5393,148.39,148.33,318.88386157]
[1741274039347,87.5393,148.39,148.33,318.88376157]
[1741274039655,87.5393,148.39,148.33,368.61098459]
[1741274039838,87.5393,148.39,148.33,49.86938459]
[1741274040046,87.5393,148.39,148.33,0.14216157]
[1741274040632,80.8,148.38,148.28,0.033]
[1741274040866,80.8,148.37,148.28,0.033]
[1741274041046,80.8,148.36,148.28,0.033]
[1741274041245,104.3928,148.35,148.28,0.033]
[1741274041557,249.6,148.34,148.28,0.033]
[1741274041757,80.8,148.33,148.28,0.033]
[1741274042268,80.8,148.32,148.28,0.033]
[1741274042856,80.8,148.32,148.24,0.033]
[1741274043064,80.8,148.31,148.24,0.033]
[1741274043261,170.8,148.34,148.24,0.17516157]
[1741274043262,87.543,148.3,148.24,0.17516157]
[1741274043565,87.543,148.3,148.25,0.14216157]
[1741274044060,87.543,148.3,148.24,0.033]
[1741274044260,80.8,148.29,148.24,0.033]
[1741274044566,23.6007,148.3,148.24,0.033]
[1741274044567,89.08,148.28,148.24,0.033]
[1741274044857,80.8,148.27,148.24,0.033]
[1741274045259,6.7449,148.26,148.24,0.033]
[1741274045464,80.8,148.25,148.21,0.033]
[1741274045660,80.8,148.24,148.21,0.033]
[1741274046656,80.8,148.27,148.22,49.86938459]
[1741274046858,80.8,148.27,148.22,0.14216157]
[1741274047637,80.8,148.27,148.21,0.033]
[1741274047840,80.8,148.27,148.21,0.17516157]
[1741274048145,80.8,148.27,148.21,56.64938459]
[1741274048354,80.8,148.27,148.24,0.033]
[1741274048551,80.8,148.26,148.24,0.033]
[1741274049758,80.8,148.3,148.25,49.86938459]
[1741274049962,80.8,148.3,148.25,0.14216157]
[1741274050163,80.8,148.3,148.25,49.72722302]
[1741274050361,80.8,148.3,148.28,0.14216157]
[1741274050559,160.48,148.34,148.28,49.86938459]
[1741274050560,80.8,148.33,148.28,49.86938459]
[1741274050752,80.8,148.32,148.28,0.14216157]
[1741274051271,80.8,148.32,148.29,6.88566157]
[1741274051470,2.0,148.45,148.32,0.14216157]
[1741274051471,80.8,148.37,148.32,0.14216157]
[1741274051692,80.8,148.41,148.34,0.14216157]
[1741274051964,18.64964886,148.39,148.26,0.14216157]
[1741274052166,18.64964886,148.37,148.25,6.7453]
[1741274052464,25.5834,148.41,148.21,0.033]
[1741274052465,18.64964886,148.33,148.21,0.033]
[1741274052646,18.64964886,148.31,148.21,0.033]
[1741274052842,18.64964886,148.29,148.21,0.033]
[1741274053060,18.64964886,148.27,148.21,0.033]
[1741274053468,18.64964886,148.25,148.21,0.033]
[1741274053767,18.64964886,148.23,148.19,0.033]
[1741274054453,18.64964886,148.23,148.18,0.033]
[1741274054768,18.64964886,148.21,148.18,0.033]
[1741274055172,80.8,148.2,148.18,0.033]
[1741274055348,80.8,148.19,148.18,0.033]
[1741274055763,87.548,148.19,148.18,0.033]
[1741274055968,6.7477,148.2,148.18,0.033]
[1741274056366,25.39584886,148.23,148.18,0.033]
[1741274057465,42.26144886,148.23,148.18,0.033]
[1741274057644,44.26144886,148.23,148.18,0.033]
[1741274058065,18.64964886,148.21,148.15,0.033]
[1741274058245,18.64964886,148.19,148.15,0.033]
[1741274058445,18.64964886,148.17,148.15,0.033]
[1741274058870,18.64964886,148.17,148.14,0.033]
[1741274059051,18.64964886,148.15,148.14,0.033]
[1741274059646,30.73521498,148.15,148.14,0.033]
[1741274060466,8.26,148.15,148.14,0.033]
[1741274061972,15.0099,148.15,148.14,0.033]
[1741274063476,15.0099,148.15,148.14,0.0001]
[1741274064180,15.0099,148.15,148.09,0.033]
[1741274064554,80.8,148.14,148.09,0.033]
[1741274064756,18.64964886,148.13,148.09,0.033]
[1741274065079,31.8846,148.15,148.09,0.033]
[1741274065080,80.8,148.12,148.09,0.033]
[1741274065284,80.8,148.11,148.09,0.033]
[1741274065756,80.8,148.14,148.09,0.17516157]
[1741274066854,80.8,148.14,148.09,0.033]
[1741274067069,80.8,148.17,148.12,0.14216157]
[1741274067355,80.8,148.2,148.17,0.14216157]
[1741274067557,160.74,148.26,148.2,0.14216157]
[1741274067558,80.8,148.25,148.2,0.14216157]
[1741274067775,80.8,148.24,148.2,0.14216157]
[1741274068283,80.8,148.24,148.15,0.14216157]
[1741274068459,80.8,148.23,148.18,0.14216157]
[1741274068650,80.8,148.23,148.2,0.14216157]
[1741274069270,80.8,148.23,148.18,49.86938459]
[1741274069875,80.8,148.23,148.18,0.14216157]
[1741274070068,80.8,148.23,148.18,56.61768459]
[1741274070456,160.74,148.26,148.21,49.72722302]
[1741274070780,16.8828,148.35,148.2,312.14216157]
[1741274070781,80.8,148.29,148.24,49.86938459]
[1741274071081,80.8,148.29,148.24,0.14216157]
[1741274071464,80.8,148.29,148.2,312.0]
[1741274071663,80.8,148.28,148.23,0.14216157]
[1741274071863,87.5422,148.32,148.23,6.88816157]
[1741274072281,87.5422,148.32,148.22,0.14216157]
[1741274072467,0.03,148.29,148.22,0.14216157]
[1741274072677,80.8,148.28,148.19,0.08825359]
[1741274072881,80.8,148.27,148.2,0.14216157]
[1741274074185,95.8044,148.27,148.19,6.89016157]
[1741274074686,89.06,148.27,148.21,0.14216157]
[1741274074870,89.06,148.27,148.21,49.86938459]
[1741274075471,8.26,148.27,148.23,0.14216157]
[1741274075781,80.8,148.28,148.23,0.14216157]
[1741274075966,80.8,148.28,148.21,49.72722302]
[1741274076165,87.5441,148.28,148.21,0.14216157]
[1741274076483,80.8,148.27,148.18,6.7814]
[1741274076671,80.8,148.26,148.19,49.86938459]
[1741274076876,80.8,148.26,148.21,0.14216157]
[1741274077066,80.8,148.25,148.21,49.86938459]
[1741274077471,80.8,148.25,148.19,0.14216157]
[1741274077672,80.8,148.25,148.21,49.72722302]
[1741274077881,80.8,148.25,148.22,0.14216157]
[1741274078088,80.8,148.25,148.22,312.14216157]
[1741274078790,80.8,148.25,148.21,0.14216157]
[1741274078971,80.8,148.24,148.18,0.033]
[1741274079177,80.8,148.23,148.18,0.033]
[1741274079774,80.8,148.22,148.18,0.033]
[1741274079975,87.5471,148.21,148.18,0.033]
[1741274080295,80.8,148.2,148.18,0.033]
[1741274081178,6.7458,148.24,148.18,0.17516157]
[1741274081378,6.7458,148.24,148.19,0.14216157]
[1741274081579,80.8,148.23,148.19,312.14216157]
[1741274082300,87.5463,148.23,148.18,0.033]
[1741274083095,80.8,148.22,148.18,0.033]
[1741274084295,23.615,148.21,148.18,0.033]
[1741274084480,80.8,148.2,148.18,0.033]
[1741274084682,80.8,148.19,148.18,0.033]
[1741274084888,23.615,148.21,148.18,0.033]
[1741274085095,6.7471,148.21,148.18,0.033]
[1741274085272,80.8,148.2,148.18,0.033]
[1741274086392,6.748,148.19,148.18,0.033]
[1741274088081,87.5477,148.2,148.18,0.033]
[1741274088673,80.8,148.19,148.18,0.033]
[1741274089506,97.6644,148.25,148.18,0.17516157]
[1741274089679,80.8,148.24,148.18,49.90238459]
[1741274090313,80.8,148.24,148.18,0.17516157]
[1741274090607,87.5458,148.24,148.18,49.90238459]
[1741274090902,87.5458,148.24,148.18,0.17516157]
[1741274091082,104.4103,148.24,148.18,0.033]
[1741274091279,80.8,148.23,148.18,0.033]
[1741274091484,80.8,148.23,148.19,0.14216157]
[1741274092579,6.7467,148.22,148.19,0.14216157]
[1741274092780,6.7467,148.22,148.18,0.033]
[1741274093002,23.6135,148.22,148.18,0.033]
[1741274093179,80.8,148.21,148.18,0.033]
[1741274093605,80.8,148.2,148.18,0.033]
[1741274094486,15.0067,148.22,148.18,0.033]
[1741274095093,31.8735,148.22,148.18,0.033]
[1741274095289,80.8,148.21,148.18,0.033]
[1741274095481,80.8,148.2,148.18,0.033]
[1741274095694,80.8,148.19,148.18,0.033]
[1741274095899,18.64964886,148.21,148.18,0.033]
[1741274096085,31.8735,148.22,148.18,0.033]
[1741274096498,17.48792735,148.21,148.18,0.033]
[1741274096702,31.8735,148.22,148.18,0.033]
[1741274097019,0.03,148.2,148.18,0.033]
[1741274098207,0.03,148.2,148.13,0.033]
[1741274098823,23.6466,148.2,148.13,0.033]
[1741274100308,99.44964886,148.19,148.13,0.033]
[1741274100602,6.7485,148.18,148.13,312.033]
[1741274100981,23.6198,148.18,148.13,312.033]
[1741274101196,160.7,148.17,148.13,0.033]
[1741274101404,89.06,148.16,148.13,0.033]
[1741274101791,99.44964886,148.15,148.09,0.033]
[1741274102088,18.64964886,148.13,148.09,0.033]
[1741274102609,80.8,148.14,148.09,0.033]
[1741274102786,6.7508,148.13,148.09,0.033]
[1741274103106,80.8,148.12,148.09,0.033]
[1741274103316,6.7504,148.14,148.09,0.033]
[1741274104022,80.8,148.13,148.09,0.17516157]
[1741274104312,80.8,148.13,148.12,312.14216157]
[1741274104501,80.8,148.13,148.12,312.0]
[1741274104703,80.8,148.13,148.09,0.033]
[1741274104904,80.8,148.12,148.09,0.033]
[1741274105110,80.8,148.12,148.1,0.14216157]
[1741274105613,80.8,148.12,148.09,6.7856]
[1741274105814,80.8,148.12,148.09,37.46003414]
[1741274106022,80.8,148.12,148.1,0.14216157]
[1741274106318,80.8,148.16,148.1,30.81659571]
[1741274106500,241.5,148.17,148.1,30.81659571]
[1741274106810,241.5,148.17,148.15,0.14216157]
[1741274106811,160.7,148.17,148.15,0.14216157]
[1741274107012,160.7,148.17,148.1,0.14216157]
[1741274107192,160.7,148.17,148.12,0.14216157]
[1741274107718,80.8,148.18,148.17,0.14216157]
[1741274107906,80.8,148.18,148.16,312.0]
[1741274108613,80.8,148.18,148.09,0.033]
[1741274108614,80.8,148.17,148.09,0.033]
[1741274108815,6.7499,148.15,148.09,0.033]
[1741274109821,89.06,148.16,148.09,0.033]
[1741274110016,95.8095,148.16,148.09,0.033]
[1741274110394,89.06,148.16,148.11,0.14216157]
[1741274110699,95.8094,148.16,148.11,0.14216157]
[1741274110905,95.8094,148.16,148.09,0.033]
[1741274111631,80.8,148.15,148.11,312.0]
[1741274111798,80.8,148.14,148.11,312.0]
[1741274111997,80.8,148.13,148.11,312.0]
[1741274112310,80.8,148.13,148.09,0.033]
[1741274112507,80.8,148.12,148.09,0.033]
[1741274112833,6.7517,148.11,148.09,0.033]
[1741274112999,80.8,148.1,148.09,0.033]
[1741274114414,80.8,148.15,148.1,0.14216157]
[1741274114599,0.03,148.2,148.15,0.14216157]
[1741274114801,0.03,148.2,148.19,0.14216157]
[1741274115521,0.03,148.2,148.19,312.14216157]
[1741274116330,0.03,148.2,148.19,342.81659571]
[1741274116643,0.03,148.2,148.19,312.14216157]
[1741274117136,0.03,148.2,148.19,312.0]
[1741274117903,0.03,148.2,148.19,312.14216157]
[1741274118415,0.03,148.2,148.19,312.0]
[1741274118621,80.8,148.19,148.13,49.82136465]
[1741274118826,80.8,148.18,148.12,58.08136465]
[1741274119017,6.749,148.17,148.13,0.14216157]
[1741274119333,80.8,148.18,148.15,0.14216157]
[1741274119521,0.03,148.2,148.15,49.96352622]
[1741274119714,0.03,148.2,148.17,0.14216157]
[1741274119898,0.03,148.2,148.18,0.14216157]
[1741274120100,0.03,148.2,148.18,49.96352622]
[1741274120715,0.03,148.2,148.15,0.14216157]
[1741274120919,0.03,148.2,148.15,18.79181043]
[1741274121222,0.03,148.2,148.17,0.14216157]
[1741274121402,0.03,148.2,148.17,49.96352622]
[1741274121603,0.03,148.2,148.19,312.0]
[1741274121800,0.03,148.2,148.19,312.14216157]
[1741274122024,0.03,148.2,148.19,363.96352622]
[1741274122223,80.8,148.32,148.23,20.14216157]
[1741274122401,80.8,148.32,148.28,49.96352622]
[1741274122606,0.03,148.33,148.28,49.96352622]
[1741274122806,0.03,148.33,148.28,70.0289224]
[1741274123040,0.03,148.33,148.29,18.79181043]
[1741274123244,0.03,148.33,148.32,49.96352622]
[1741274123921,0.03,148.35,148.33,18.79181043]
[1741274124125,0.03,148.35,148.34,49.96352622]
[1741274125633,0.03,148.35,148.34,361.96352622]
[1741274126826,0.03,148.35,148.34,361.82136465]
[1741274127005,0.03,148.35,148.34,361.96352622]
[1741274127428,0.03,148.35,148.34,312.14216157]
[1741274127640,0.03,148.35,148.34,361.96352622]
[1741274127854,0.03,148.35,148.34,312.14216157]
[1741274128005,0.03,148.35,148.3,49.82136465]
[1741274128208,0.03,148.35,148.31,0.14216157]
[1741274128419,0.03,148.35,148.32,49.82136465]
[1741274128631,0.03,148.35,148.3,49.82136465]
[1741274128822,80.8,148.34,148.27,49.82136465]
[1741274129033,80.8,148.33,148.29,49.82136465]
[1741274129213,0.03,148.35,148.24,1.41611875]
[1741274129214,0.03,148.35,148.33,0.14216157]
[1741274129416,0.03,148.35,148.34,49.82136465]
[1741274129726,6.7709,148.35,148.3,49.82136465]
[1741274129926,80.8,148.34,148.3,49.82136465]
[1741274130130,80.8,148.34,148.32,49.82136465]
[1741274130320,80.8,148.33,148.24,20.0]
[1741274130520,80.8,148.32,148.26,49.82136465]
[1741274130724,80.8,148.32,148.27,0.14216157]
[1741274130918,80.8,148.31,148.27,0.14216157]
[1741274131118,80.8,148.31,148.29,49.96352622]
[1741274131311,0.03,148.35,148.31,0.14216157]
[1741274131622,0.03,148.35,148.34,49.96352622]
[1741274132133,0.03,148.35,148.34,0.14216157]
[1741274132309,0.03,148.35,148.34,49.96352622]
[1741274132515,0.03,148.35,148.34,68.61317508]
[1741274133138,0.03,148.35,148.34,291.43869822]
[1741274133337,0.03,148.35,148.34,291.15437508]
[1741274133554,0.03,148.39,148.38,20.0]
[1741274133854,0.03,148.44,148.39,18.79181043]
[1741274134013,0.03,148.44,148.43,49.96352622]
[1741274134623,0.03,148.44,148.43,361.96352622]
[1741274134825,0.03,148.44,148.43,312.14216157]
[1741274136139,0.03,148.44,148.35,49.82136465]
[1741274136322,80.8,148.43,148.37,0.14216157]
[1741274136514,80.77,148.42,148.32,49.82136465]
[1741274136720,80.77,148.41,148.32,49.82136465]
[1741274136914,80.77,148.4,148.29,6.7435]
[1741274137119,80.77,148.39,148.25,215.8]
[1741274137358,104.358,148.38,148.3,49.82136465]
[1741274137653,80.77,148.37,148.31,49.96352622]
[1741274137952,80.77,148.37,148.26,74.8444216]
[1741274137953,80.77,148.36,148.3,49.82136465]
[1741274138153,80.77,148.36,148.31,0.14216157]
[1741274138728,80.77,148.36,148.26,1.41586613]
[1741274139034,80.77,148.35,148.3,312.14216157]
[1741274139227,80.77,148.35,148.31,49.82136465]
[1741274139424,80.77,148.35,148.33,0.14216157]
[1741274140060,80.77,148.4,148.33,49.96352622]
[1741274140263,80.77,148.39,148.33,49.96352622]
[1741274140458,168.76,148.43,148.24,224.04]
[1741274140459,80.77,148.38,148.24,224.04]
[1741274140640,80.77,148.37,148.31,49.82136465]
[1741274140840,80.77,148.37,148.34,49.82136465]
[1741274141038,80.77,148.42,148.36,49.82136465]
[1741274141237,0.03,148.44,148.4,49.96352622]
[1741274141430,0.03,148.44,148.41,49.82136465]
[1741274141633,0.03,148.44,148.43,0.14216157]
[1741274142032,0.03,148.44,148.43,49.96352622]
[1741274142549,0.03,148.44,148.43,361.96352622]
[1741274142855,0.03,148.44,148.43,312.14216157]
[1741274143260,0.03,148.44,148.43,361.96352622]
[1741274143771,0.03,148.44,148.43,387.35027508]
[1741274143941,0.03,148.44,148.43,361.96352622]
[1741274144137,0.03,148.44,148.43,312.14216157]
[1741274144335,0.03,148.44,148.43,312.0]
[1741274144556,80.77,148.43,148.36,58.06136465]
[1741274144752,80.77,148.43,148.35,0.14216157]
[1741274144947,0.03,148.44,148.32,134.71324235]
[1741274144948,80.77,148.42,148.32,6.95524235]
[1741274145139,0.03,148.44,148.35,49.82136465]
[1741274145140,80.77,148.41,148.35,49.82136465]
[1741274145342,80.77,148.41,148.37,49.82136465]
[1741274145550,80.77,148.41,148.38,0.14216157]
[1741274145757,80.77,148.43,148.38,0.14216157]
[1741274145954,6.7376,148.42,148.38,0.14216157]
[1741274146260,0.03,148.44,148.41,0.14216157]
[1741274146562,6.7667,148.44,148.42,0.14216157]
[1741274146858,0.03,148.44,148.39,49.96352622]
[1741274147034,0.03,148.44,148.42,0.14216157]
[1741274147239,0.03,148.44,148.43,49.96352622]
[1741274147456,0.03,148.44,148.43,361.96352622]
[1741274148054,0.03,148.44,148.43,380.61317508]
[1741274149356,0.03,148.48,148.44,18.79181043]
[1741274149536,0.03,148.48,148.47,0.14216157]
[1741274149737,0.03,148.48,148.47,49.96352622]
[1741274149945,0.03,148.48,148.47,0.14216157]
[1741274151139,0.03,148.48,148.44,49.82136465]
[1741274151338,0.03,148.48,148.46,0.14216157]
[1741274151942,0.03,148.48,148.44,49.96352622]
[1741274152145,0.03,148.48,148.46,0.14216157]
[1741274152561,0.03,148.48,148.46,312.14216157]
[1741274152859,0.03,148.48,148.46,312.0]
[1741274153056,0.03,148.48,148.4,49.82136465]
[1741274153366,6.7358,148.46,148.34,240.8923]
[1741274153676,80.77,148.45,148.36,49.82136465]
[1741274153839,80.77,148.44,148.36,49.82136465]
[1741274154045,80.77,148.43,148.33,6.7416]
[1741274154245,80.77,148.42,148.35,49.82136465]
[1741274154574,80.77,148.42,148.37,0.14216157]
[1741274154770,80.77,148.47,148.42,0.14216157]
[1741274154949,0.03,148.48,148.46,0.14216157]
[1741274155569,0.03,148.48,148.43,0.14216157]
[1741274155764,0.03,148.48,148.43,49.96352622]
[1741274155945,0.03,148.48,148.44,49.82136465]
[1741274156147,0.03,148.48,148.47,0.14216157]
[1741274156345,0.03,148.48,148.46,312.0]
[1741274156548,0.03,148.48,148.45,0.14216157]
[1741274157271,0.03,148.48,148.44,0.14216157]
[1741274157448,80.77,148.47,148.44,0.14216157]
[1741274158459,80.77,148.47,148.42,49.96352622]
[1741274158765,80.77,148.47,148.44,0.14216157]
[1741274159175,0.03,148.48,148.46,49.82136465]
[1741274159379,0.03,148.48,148.47,0.14216157]
[1741274159586,0.03,148.48,148.47,312.0]
[1741274160065,0.03,148.48,148.47,312.14216157]
[1741274160239,80.8,148.47,148.38,0.033]
[1741274160444,80.8,148.46,148.38,0.033]
[1741274160743,80.8,148.46,148.39,0.14216157]
[1741274161049,80.8,148.46,148.39,49.82136465]
[1741274161271,80.8,148.46,148.4,56.55966465]
[1741274161584,87.5358,148.46,148.38,0.033]
[1741274161771,80.8,148.45,148.38,49.85436465]
[1741274162092,80.8,148.45,148.39,49.82136465]
[1741274162265,80.8,148.45,148.38,0.033]
[1741274162592,80.8,148.44,148.38,0.033]
[1741274162760,80.8,148.43,148.38,0.033]
[1741274163268,80.8,148.43,148.4,312.0]
[1741274163472,80.8,148.43,148.41,0.14216157]
[1741274163671,87.5359,148.46,148.41,0.14216157]
[1741274163879,80.8,148.46,148.41,18.79181043]
[1741274164067,0.03,148.47,148.45,0.14216157]
[1741274164269,0.03,148.47,148.46,49.96352622]
[1741274164475,0.03,148.47,148.46,68.61317508]
[1741274164875,0.03,148.47,148.46,334.23453973]
[1741274165078,0.03,148.48,148.47,19.07613357]
[1741274165291,0.03,148.5,148.49,88.61317508]
[1741274165588,0.03,148.5,148.49,105.00103702]
[1741274166172,0.03,148.51,148.5,19.07613357]
[1741274166362,0.03,148.51,148.5,68.61317508]
[1741274166760,0.03,148.51,148.5,380.61317508]
[1741274167084,80.8,148.62,148.54,18.79181043]
[1741274167284,0.03,148.63,148.6,0.14216157]
[1741274167780,0.03,148.63,148.58,49.82136465]
[1741274167781,0.03,148.63,148.59,0.14216157]
[1741274167985,0.03,148.62,148.55,8.24]
[1741274168173,0.03,148.62,148.56,0.14216157]
[1741274168560,80.8,148.61,148.53,49.82136465]
[1741274168761,80.8,148.61,148.54,49.82136465]
[1741274168965,0.03,148.62,148.55,0.14216157]
[1741274169180,0.03,148.62,148.57,0.14216157]
[1741274169483,0.03,148.62,148.57,49.96352622]
[1741274169691,0.03,148.62,148.58,0.14216157]
[1741274170286,0.03,148.62,148.61,0.14216157]
[1741274170585,0.03,148.62,148.6,312.0]
[1741274170887,0.03,148.62,148.61,49.96352622]
[1741274171071,0.03,148.62,148.61,118.43453973]
[1741274171267,0.03,148.62,148.61,119.84727683]
[1741274171489,0.03,148.62,148.61,134.79627683]
[1741274171693,0.03,148.62,148.61,350.88059997]
[1741274171863,160.34,148.77,148.7,0.14216157]
[1741274172061,160.34,148.85,148.76,0.14216157]
[1741274172364,80.8,148.84,148.77,49.96352622]
[1741274172684,80.8,148.84,148.78,49.82136465]
[1741274172865,160.34,148.85,148.79,0.14216157]
[1741274173068,80.8,148.87,148.81,49.96352622]
[1741274173368,80.8,148.91,148.81,49.96352622]
[1741274173575,170.78727719,148.93,148.82,0.14216157]
[1741274173872,170.78727719,148.93,148.87,0.14216157]
[1741274174175,10.54727719,148.93,148.89,49.96352622]
[1741274174383,10.54727719,148.93,148.89,0.14216157]
[1741274174591,17.26177719,148.93,148.89,0.14216157]
[1741274174766,241.04,149.01,148.87,0.14216157]
[1741274174767,6.7141,148.95,148.87,0.14216157]
[1741274174966,0.1557868,148.95,148.91,49.82136465]
[1741274175287,0.1557868,148.95,148.93,0.14216157]
[1741274175492,0.1557868,148.95,148.89,0.14216157]
[1741274175870,80.8,148.94,148.82,49.82136465]
[1741274176174,18.64964886,148.92,148.79,8.22]
[1741274176482,89.02,148.93,148.86,49.82136465]
[1741274176483,8.22,148.93,148.86,49.82136465]
[1741274176683,0.1557868,148.95,148.88,49.96352622]
[1741274176899,0.1557868,148.95,148.9,49.96352622]
[1741274177103,0.1557868,148.95,148.93,0.14216157]
[1741274177308,0.1557868,148.95,148.94,312.14216157]
[1741274177476,0.1557868,148.95,148.94,312.0]
[1741274177676,2.0,149.03,148.94,312.0]
[1741274177677,18.64964886,149.03,148.94,312.0]
[1741274177872,18.64964886,149.0,148.91,0.14216157]
[1741274178098,80.8,148.99,148.91,0.14216157]
[1741274178681,80.8,148.99,148.89,49.82136465]
[1741274178984,166.9505,149.02,148.91,49.96352622]
[1741274179283,168.9505,149.02,148.87,60.26018999]
[1741274179468,12.67200028,149.01,148.91,2.0]
[1741274180074,12.67200028,149.0,148.91,2.0]
[1741274180275,20.89200028,148.99,148.93,2.0]
[1741274180475,20.89200028,148.99,148.94,2.0]
[1741274181001,20.89200028,148.99,148.94,314.0]
[1741274181220,12.67200028,148.99,148.91,2.0]
[1741274181376,20.89200028,148.98,148.89,2.0]
[1741274181715,19.38470028,148.97,148.87,2.0]
[1741274181878,19.38470028,148.97,148.88,2.0]
[1741274182079,19.38470028,148.97,148.85,49.82136465]
[1741274182080,19.38470028,148.97,148.85,2.0]
[1741274182292,12.67200028,148.96,148.86,2.0]
[1741274182592,12.67200028,148.96,148.88,0.14216157]
[1741274182796,12.67200028,148.96,148.91,2.0]
[1741274182973,12.67200028,148.96,148.89,0.14216157]
[1741274183178,12.67200028,148.96,148.89,2.14216157]
[1741274183380,12.67200028,148.96,148.91,0.14216157]
[1741274183576,12.67200028,148.96,148.91,2.14216157]
[1741274183807,19.38530028,148.96,148.9,0.14216157]
[1741274184033,19.38530028,148.96,148.91,2.0]
[1741274184232,12.67200028,148.96,148.89,2.14216157]
[1741274184532,12.67200028,148.96,148.9,2.14216157]
[1741274184825,12.67200028,148.96,148.91,2.0]
[1741274185127,8.22,148.98,148.92,2.14216157]